fUSD/lending_fUSD_20251024
["ID","MTS","AMOUNT","RATE_DAILY","PERIOD"]
[392266118,1761292252853,-606.417829,0.00040754,120]
[392266119,1761292252863,-151.0,0.00040754,120]
[392266120,1761292252873,-606.417829,0.00040754,120]
[392266121,1761292252883,-151.0,0.00040754,120]
[392266122,1761292252893,-623.224981,0.00040754,120]
[392266123,1761292252903,-606.417833,0.00040754,120]
[392266124,1761292252914,-163.078475,0.00040754,120]
[392266125,1761292252925,-623.224981,0.00040754,120]
[392266126,1761292252935,-155.387114,0.00040754,10]
[392266127,1761292252945,-623.224981,0.00040754,120]
[392266128,1761292252956,-623.224979,0.00040754,120]
[392266129,1761292252966,-151.0,0.00040754,120]
[392266130,1761292252976,-151.0,0.00040754,120]
[392266131,1761292252985,-160.08563,0.00040754,120]
[392266132,1761292252995,-151.0,0.00040754,120]
[392266133,1761292253005,-151.0,0.00040754,60]
[392266134,1761292253015,-151.0,0.00040754,120]
[392266135,1761292253025,-276.344647,0.00040754,120]
[392266136,1761292253036,-151.0,0.00040754,120]
[392266137,1761292253046,-151.0,0.00040754,120]
[392266138,1761292253056,-151.0,0.00040754,120]
[392266139,1761292253066,-156.117335,0.00040754,120]
[392266140,1761292253076,-151.0,0.00040754,120]
[392266141,1761292253088,-151.0,0.00040754,120]
[392266142,1761292253098,-151.0,0.00040754,120]
[392266143,1761292253109,-151.0,0.00040754,120]
[392266144,1761292253119,-151.0,0.00040754,30]
[392266145,1761292253129,-205.979765,0.00040754,120]
[392266146,1761292253139,-151.0,0.00040754,120]
[392266147,1761292253149,-151.0,0.00040754,120]
[392266148,1761292253159,-429.45251,0.00040754,120]
[392266149,1761292253169,-151.0,0.00040754,120]
[392266150,1761292253179,-429.45251,0.00040754,120]
[392266151,1761292253189,-429.45251,0.00040754,120]
[392266152,1761292253199,-429.45252,0.00040754,120]
[392266153,1761292253210,-194.654087,0.00040754,120]
[392266154,1761292253220,-151.0,0.00040754,120]
[392266155,1761292253230,-151.0,0.00040754,120]
[392266156,1761292253240,-151.0,0.00040754,120]
[392266157,1761292253249,-216.167271,0.00040754,120]
[392266158,1761292253261,-216.167271,0.00040754,120]
[392266159,1761292253271,-216.167271,0.00040754,120]
[392266160,1761292253281,-216.167265,0.00040754,120]
[392266161,1761292253291,-151.0,0.00040754,120]
[392266162,1761292253301,-151.0,0.00040754,120]
[392266163,1761292253311,-151.0,0.00040754,120]
[392266164,1761292253320,-156.344412,0.00040754,120]
[392266165,1761292253330,-156.344412,0.00040754,120]
[392266166,1761292253340,-156.344412,0.00040754,120]
[392266167,1761292253350,-156.34442,0.00040754,120]
[392266168,1761292253360,-500.0,0.00040763,7]
[392266169,1761292253370,-500.0,0.00040763,30]
[392266170,1761292253380,-500.0,0.00040763,2]
[392266171,1761292253390,-151.0,0.00040764,90]
[392266172,1761292253400,-151.0,0.00040764,90]
[392266173,1761292253410,-151.0,0.00040764,120]
[392266174,1761292253420,-151.0,0.00040764,120]
[392266175,1761292253430,-151.0,0.00040764,120]
[392266176,1761292253440,-151.0,0.00040764,120]
[392266177,1761292253450,-151.0,0.00040764,120]
[392266178,1761292253459,-151.0,0.00040764,120]
[392266179,1761292253469,-151.0,0.00040764,120]
[392266180,1761292253478,-151.0,0.00040764,120]
[392266181,1761292253488,-151.0,0.00040764,120]
[392266182,1761292253498,-195.503348,0.00040764,120]
[392266183,1761292253508,-151.0,0.00040764,120]
[392266184,1761292253518,-151.0,0.00040764,120]
[392266185,1761292253528,-161.01244,0.00040764,120]
[392266186,1761292253537,-151.0,0.00040764,120]
[392266187,1761292253547,-151.0,0.00040764,120]
[392266188,1761292253557,-151.0,0.00040764,120]
[392266189,1761292253567,-151.0,0.00040764,120]
[392266190,1761292253577,-151.0,0.00040764,120]
[392266191,1761292253587,-151.0,0.00040764,120]
[392266192,1761292253596,-267.927669,0.00040764,120]
[392266193,1761292253606,-151.0,0.00040764,120]
[392266194,1761292253621,-151.0,0.00040764,120]
[392266195,1761292253631,-151.0,0.00040764,120]
[392266196,1761292253640,-162.582534,0.00040764,120]
[392266197,1761292253650,-403.058019,0.00040764,120]
[392266198,1761292253661,-403.058019,0.00040764,120]
[392266199,1761292253671,-403.058019,0.00040764,120]
[392266200,1761292253681,-403.058019,0.00040764,120]
[392266201,1761292253692,-151.0,0.00040764,120]
[392266202,1761292253702,-151.0,0.00040764,120]
[392266203,1761292253712,-151.0,0.00040764,120]
[392266204,1761292253721,-151.0,0.00040764,120]
[392266205,1761292253732,-151.0,0.00040764,120]
[392266206,1761292253741,-139203.34485003,0.00040764,30]
[392266207,1761292253751,-374.544644,0.00040767,2]
[392266208,1761292253761,-500.0,0.00040767,2]
[392266209,1761292253772,-3082.0,0.00040771,120]
[392266210,1761292253782,-572.0,0.00040771,2]
[392266211,1761292253792,-2053.0,0.00040771,2]
[392266212,1761292253802,-819.0,0.00040771,2]
[392266213,1761292253812,-3413.0,0.00040771,2]
[392266214,1761292253822,-1591.0,0.00040771,2]
[392266215,1761292253844,-675.349,0.00040771,2]
[392266216,1761292253854,-1312.0,0.00040771,2]
[392266217,1761292253864,-818.0,0.00040771,2]
[392266218,1761292253875,-1269.0,0.00040771,2]
[392266219,1761292253885,-6539.0,0.00040771,2]
[392266220,1761292253896,-6456.0,0.00040771,2]
[392266221,1761292253907,-3487.0,0.00040771,2]
[392266222,1761292253917,-558.0,0.00040771,2]
[392266223,1761292253928,-500.0,0.00040773,5]
[392266224,1761292253939,-163.8511214,0.00040773,5]
[392266225,1761292253950,-500.0,0.00040773,5]
[392266226,1761292253960,-500.0,0.00040773,5]
[392266227,1761292253971,-500.0,0.00040773,5]
[392266228,1761292253982,-500.0,0.00040773,5]
[392266229,1761292253993,-200.0,0.00040773,5]
[392266230,1761292254005,-500.0,0.00040773,5]
[392266231,1761292254366,-500.0,0.00040773,5]
[392266232,1761292254390,-500.0,0.00040773,5]
[392266233,1761292254399,-500.0,0.00040773,5]
[392266234,1761292254409,-500.0,0.00040773,5]
[392266235,1761292254419,-1425.0,0.0004078,2]
[392266236,1761292254428,-1206.86,0.000408,14]
[392266237,1761292254437,-1000.0,0.000408,7]
[392266238,1761292254446,-3100.0,0.000408,14]
[392266239,1761292254455,-1425.0,0.00040804,2]
[392266240,1761292254465,-1425.0,0.0004081,2]
[392266241,1761292254474,-151.0,0.00040815,15]
[392266242,1761292254484,-151.0,0.00040815,120]
[392266243,1761292254494,-515.315031,0.00040815,120]
[392266244,1761292254504,-164.792645,0.00040815,120]
[392266245,1761292254513,-157.818787,0.00040815,120]
[392266246,1761292254522,-515.315031,0.00040815,120]
[392266247,1761292254532,-173.888232,0.00040815,120]
[392266248,1761292254541,-515.315031,0.00040815,120]
[392266249,1761292254550,-173.888232,0.00040815,120]
[392266250,1761292254558,-515.315022,0.00040815,120]
[392266251,1761292254567,-173.888232,0.00040815,120]
[392266252,1761292254577,-173.88824,0.00040815,120]
[392266253,1761292254586,-151.0,0.00040815,120]
[392266254,1761292254595,-151.0,0.00040815,120]
[392266255,1761292254605,-151.0,0.00040815,120]
[392266256,1761292254618,-151.0,0.00040815,120]
[392266257,1761292254627,-151.0,0.00040815,120]
[392266258,1761292254636,-151.0,0.00040815,120]
[392266259,1761292254649,-151.0,0.00040815,120]
[392266260,1761292254660,-263.317467,0.00040815,120]
[392266261,1761292254670,-263.317467,0.00040815,120]
[392266262,1761292254679,-263.317467,0.00040815,120]
[392266263,1761292254690,-263.317469,0.00040815,120]
[392266264,1761292254699,-1000.0,0.00040821,120]
[392266265,1761292254708,-1000.0,0.00040821,120]
[392266266,1761292254719,-180.06219327,0.00040821,120]
[392266267,1761292254728,-190.202171,0.00040821,120]
[392266268,1761292254738,-190.202171,0.00040821,120]
[392266269,1761292254748,-151.0,0.00040821,120]
[392266270,1761292254758,-190.202171,0.00040821,120]
[392266271,1761292254767,-190.202167,0.00040821,120]
[392266272,1761292254777,-500.0,0.00040822,2]
[392266273,1761292254787,-151.0,0.00040822,60]
[392266274,1761292254797,-151.0,0.00040822,60]
[392266275,1761292254807,-215.215726,0.00040822,60]
[392266276,1761292254816,-1425.0,0.00040823,2]
[392266277,1761292254826,-9961.3857,0.00040825,2]
[392266278,1761292254836,-1425.0,0.00040845,2]
[392266279,1761292254846,-1425.0,0.00040847,2]
[392266280,1761292254855,-1425.0,0.00040849,2]
[392266281,1761292254864,-430.74709499,0.00040853,30]
[392266282,1761292254874,-155.9196534,0.00040856,14]
[392266283,1761292254885,-1425.0,0.00040857,2]
[392266284,1761292254895,-150.0,0.00040865,7]
[392266285,1761292254904,-874.92877392,0.0004087,30]
[392266286,1761292254914,-503.07324151,0.00040873,5]
[392266287,1761292254924,-500.0,0.00040873,5]
[392266288,1761292254933,-500.0,0.00040873,5]
[392266289,1761292254944,-500.0,0.00040877,2]
[392266290,1761292254954,-1425.0,0.0004088,2]
[392266291,1761292254963,-1425.0,0.00040894,2]
[392266292,1761292254973,-448.47176629,0.000409,2]
[392266293,1761292255540,-1670.25,0.000409,2]
[392266294,1761292255552,-16839.46731596,0.000409,2]
[392266295,1761292256008,-151.0,0.0003998,120]
[392266296,1761292256018,-162.607049,0.0003998,120]
[392266297,1761292256027,-151.0,0.0004,120]
[392266298,1761292256039,-151.0,0.0004023,120]
[392266299,1761292256051,-864.0,0.00040493,2]
[392266300,1761292256060,-864.0,0.00040548,2]
[392266301,1761292256070,-151.0,0.00040595,120]
[392266302,1761292256081,-864.0,0.00040602,2]
[392266303,1761292256092,-864.0,0.00040657,2]
[392266304,1761292256102,-864.0,0.00040712,2]
[392266305,1761292256112,-864.0,0.00040767,2]
[392266306,1761292256122,-864.0,0.00040821,2]
[392266307,1761292256132,-871.69128714,0.00040876,2]
[392266308,1761292256142,-32502.94713523,0.000409,2]
[392266309,1761292256153,-613.92,0.000409,30]
[392266310,1761292256163,-3900.0,0.000409,14]
[392266311,1761292256172,-1000.0,0.00040913,7]
[392266312,1761292256182,-1425.0,0.00040916,2]
[392266313,1761292256192,-1425.0,0.00040919,2]
[392266314,1761292256201,-168.0,0.00040919,2]
[392266315,1761292256211,-500.0,0.00040928,30]
[392266316,1761292256221,-185.55644604,0.00040931,2]
[392266317,1761292256230,-721.565,0.0004095,120]
[392266318,1761292256239,-1425.0,0.0004096,2]
[392266319,1761292256249,-352.38726884,0.00040975,2]
[392266320,1761292256258,-1425.0,0.00040976,2]
[392266321,1761292256267,-156.864367,0.00040985,120]
[392266322,1761292256276,-284.446947,0.00040985,120]
[392266323,1761292256286,-153.593769,0.00040985,120]
[392266324,1761292256295,-151.0,0.00040985,120]
[392266325,1761292256304,-151.0,0.00040985,120]
[392266326,1761292256314,-151.0,0.00040985,120]
[392266327,1761292256323,-151.0,0.00040985,120]
[392266328,1761292256333,-151.0,0.00040985,120]
[392266329,1761292256342,-151.0,0.00040986,90]
[392266330,1761292256351,-151.0,0.00040986,90]
[392266331,1761292256361,-151.0,0.00040986,120]
[392266332,1761292256371,-151.0,0.00040986,120]
[392266333,1761292256380,-151.0,0.00040986,120]
[392266334,1761292256390,-151.0,0.00040986,120]
[392266335,1761292256399,-151.0,0.00040986,120]
[392266336,1761292256480,-151.0,0.00040986,120]
[392266337,1761292256490,-151.0,0.00040986,120]
[392266338,1761292256499,-151.0,0.00040986,120]
[392266339,1761292256508,-151.0,0.00040986,120]
[392266340,1761292256519,-403.058019,0.00040986,120]
[392266341,1761292256528,-403.058019,0.00040986,120]
[392266342,1761292256537,-403.058019,0.00040986,120]
[392266343,1761292256547,-403.058011,0.00040986,120]
[392266344,1761292256556,-1000.0,0.00040995,2]
[392266345,1761292256569,-1000.0,0.00040995,2]
[392266346,1761292256579,-1000.0,0.00040995,2]
[392266347,1761292256588,-1000.0,0.00040995,2]
[392266348,1761292256599,-1000.0,0.00040995,2]
[392266349,1761292256608,-1000.0,0.00040995,2]
[392266350,1761292256624,-1000.0,0.00040995,2]
[392266351,1761292256634,-1000.0,0.00040995,2]
[392266352,1761292256643,-1000.0,0.00040995,2]
[392266353,1761292256653,-1000.0,0.00040995,2]
[392266354,1761292256662,-1000.0,0.00040995,2]
[392266355,1761292256671,-1000.0,0.00040995,2]
[392266356,1761292256680,-1000.0,0.00040995,2]
[392266357,1761292256692,-654.90416435,0.00040995,2]
[392266358,1761292256701,-150.0,0.00040998,7]
[392266359,1761292256710,-1000.0,0.00040999,7]
[392266360,1761292256721,-9816.0,0.00041,2]
[392266361,1761292256732,-379.05277718,0.00041,120]
[392266362,1761292256741,-687.39277689,0.00041,120]
[392266363,1761292256751,-1145.79,0.00041,120]
[392266364,1761292256761,-4500.0,0.00041,15]
[392266365,1761292256770,-1425.0,0.00041007,2]
[392266366,1761292256779,-500.0,0.00041007,7]
[392266367,1761292256790,-500.0,0.00041007,30]
[392266368,1761292256800,-1425.0,0.00041008,2]
[392266369,1761292256809,-8008.516388,0.0004102,15]
[392266370,1761292256819,-155.675,0.00041024,120]
[392266371,1761292256828,-1000.0,0.00041059,7]
[392266372,1761292256838,-354.48413907,0.0004106,7]
[392266373,1761292256847,-298.06628152,0.00041062,14]
[392266374,1761292256856,-995.70389879,0.00041064,2]
[392266375,1761292256866,-1425.0,0.00041068,2]
[392266376,1761292256875,-161.0,0.00041068,120]
[392266377,1761292256884,-287.44751312,0.00041068,7]
[392266378,1761292256894,-230.19453688,0.00041068,7]
[392266379,1761292256903,-150.00000001,0.00041068,7]
[392266380,1761292256913,-150.0,0.00041068,7]
[392266381,1761292256922,-229.07490955,0.00041068,7]
[392266382,1761292256932,-150.0,0.00041068,7]
[392266383,1761292256941,-184.08724656,0.00041068,7]
[392266384,1761292256950,-249.00000001,0.00041068,7]
[392266385,1761292256960,-155.07678216,0.00041068,7]
[392266386,1761292256971,-150.0,0.00041068,7]
[392266387,1761292256980,-501.64168909,0.00041073,5]
[392266388,1761292256990,-500.0,0.00041073,5]
[392266389,1761292256999,-501.83509928,0.00041073,5]
[392266390,1761292257009,-156.44251594,0.00041073,5]
[392266391,1761292257018,-191.51363593,0.00041074,28]
[392266392,1761292257028,-94534.56268646,0.0004109,30]
[392266393,1761292257038,-151.0,0.0004109,120]
[392266394,1761292257047,-151.0,0.0004109,120]
[392266395,1761292257057,-314.29100036,0.00041094,10]
[392266396,1761292257066,-713.42747159,0.00041094,10]
[392266397,1761292257075,-300.0,0.00041094,10]
[392266398,1761292257084,-500.0,0.00041094,7]
[392266399,1761292257094,-500.0,0.00041094,7]
[392266400,1761292257104,-500.0,0.00041094,7]
[392266401,1761292257113,-500.0,0.00041094,30]
[392266402,1761292257123,-500.0,0.00041094,30]
[392266403,1761292257132,-500.0,0.00041094,30]
[392266404,1761292257143,-300.0,0.00041095,10]
[392266405,1761292257153,-666.0,0.00041095,10]
[392266406,1761292257162,-300.0,0.00041095,10]
[392266407,1761292257172,-500.0,0.00041095,30]
[392266408,1761292257182,-500.0,0.00041095,30]
[392266409,1761292257191,-195.68389512,0.00041095,30]
[392266410,1761292257201,-500.0,0.00041095,30]
[392266411,1761292257211,-500.0,0.00041095,30]
[392266412,1761292257222,-500.0,0.00041095,30]
[392266413,1761292257234,-500.0,0.00041095,30]
[392266414,1761292257243,-500.0,0.00041095,30]
[392266415,1761292257253,-500.0,0.00041095,30]
[392266416,1761292257262,-500.0,0.00041095,30]
[392266417,1761292257271,-500.0,0.00041095,30]
[392266418,1761292257281,-500.0,0.00041095,30]
[392266419,1761292257291,-500.0,0.00041095,30]
[392266420,1761292257303,-158.779106,0.00041095,30]
[392266421,1761292257313,-500.0,0.00041095,30]
[392266422,1761292257324,-151.333364,0.00041095,30]
[392266423,1761292257334,-158.779106,0.00041095,30]
[392266424,1761292257344,-150.991584,0.00041095,30]
[392266425,1761292257353,-500.0,0.00041095,30]
[392266426,1761292257363,-500.0,0.00041095,30]
[392266427,1761292257373,-158.779103,0.00041095,30]
[392266428,1761292257383,-520.87949953,0.00041095,30]
[392266429,1761292257393,-500.0,0.00041095,30]
[392266430,1761292257404,-510.99172985,0.00041095,30]
[392266431,1761292257413,-158.779104,0.00041095,30]
[392266432,1761292257423,-266.844195,0.00041095,30]
[392266433,1761292257434,-157.484217,0.00041095,30]
[392266434,1761292257445,-500.0,0.00041095,30]
[392266435,1761292257455,-500.0,0.00041095,30]
[392266436,1761292257465,-537.82338981,0.00041095,30]
[392266437,1761292257476,-309.428211,0.00041095,30]
[392266438,1761292257486,-880.563831,0.00041095,30]
[392266439,1761292257496,-500.0,0.00041095,30]
[392266440,1761292257507,-500.0,0.00041095,30]
[392266441,1761292257517,-500.0,0.00041095,30]
[392266442,1761292257527,-500.0,0.00041095,30]
[392266443,1761292257536,-500.0,0.00041095,30]
[392266444,1761292257546,-500.0,0.00041095,30]
[392266445,1761292257555,-500.0,0.00041095,30]
[392266446,1761292257564,-501.60612852,0.00041095,30]
[392266447,1761292257574,-500.0,0.00041095,30]
[392266448,1761292257584,-500.0,0.00041095,30]
[392266449,1761292257593,-500.0,0.00041095,30]
[392266450,1761292257605,-500.0,0.00041095,30]
[392266451,1761292257619,-500.0,0.00041095,30]
[392266452,1761292257629,-500.0,0.00041095,30]
[392266453,1761292257638,-500.0,0.00041095,30]
[392266454,1761292257648,-500.0,0.00041095,30]
[392266455,1761292257659,-500.0,0.00041095,30]
[392266456,1761292257669,-500.0,0.00041095,30]
[392266457,1761292257678,-610.78500302,0.00041095,30]
[392266458,1761292257687,-500.0,0.00041095,30]
[392266459,1761292257699,-505.63839083,0.00041095,30]
[392266460,1761292257709,-500.0,0.00041095,30]
[392266461,1761292257720,-500.0,0.00041095,30]
[392266462,1761292257730,-500.0,0.00041095,30]
[392266463,1761292257739,-500.0,0.00041095,30]
[392266464,1761292257749,-500.0,0.00041095,30]
[392266465,1761292257758,-500.0,0.00041095,30]
[392266466,1761292257767,-500.0,0.00041095,30]
[392266467,1761292257777,-500.0,0.00041095,30]
[392266468,1761292257788,-500.0,0.00041095,30]
[392266469,1761292257798,-500.0,0.00041095,30]
[392266470,1761292257808,-998.95,0.00041095,30]
[392266471,1761292257818,-500.0,0.00041095,30]
[392266472,1761292257830,-500.0,0.00041095,30]
[392266473,1761292257842,-621.88,0.00041095,30]
[392266474,1761292257852,-500.0,0.00041095,30]
[392266475,1761292257862,-500.0,0.00041095,30]
[392266476,1761292257872,-500.0,0.00041095,30]
[392266477,1761292257882,-500.0,0.00041095,30]
[392266478,1761292257892,-500.0,0.00041095,30]
[392266479,1761292257902,-500.0,0.00041095,30]
[392266480,1761292257911,-500.0,0.00041095,30]
[392266481,1761292257921,-500.0,0.00041095,30]
[392266482,1761292257930,-500.0,0.00041095,30]
[392266483,1761292257939,-500.0,0.00041095,30]
[392266484,1761292257950,-500.0,0.00041095,30]
[392266485,1761292257959,-500.0,0.00041095,30]
[392266486,1761292257969,-500.0,0.00041095,30]
[392266487,1761292257978,-500.0,0.00041095,30]
[392266488,1761292257989,-242.16202153,0.00041095,30]
[392266489,1761292257999,-500.0,0.00041095,30]
[392266490,1761292258011,-692.15,0.00041095,30]
[392266491,1761292258022,-500.0,0.00041095,30]
[392266492,1761292258031,-500.0,0.00041095,30]
[392266493,1761292258040,-151.0,0.00041095,90]
[392266494,1761292258049,-271.929985,0.00041095,90]
[392266495,1761292258059,-500.0,0.00041095,30]
[392266496,1761292258068,-500.0,0.00041095,30]
[392266497,1761292258079,-500.0,0.00041095,30]
[392266498,1761292258088,-500.0,0.00041095,30]
[392266499,1761292258099,-153.309804,0.00041095,120]
[392266500,1761292258109,-645.0,0.00041095,30]
[392266501,1761292258119,-500.0,0.00041095,30]
[392266502,1761292258130,-667.23,0.00041095,30]
[392266503,1761292258141,-500.0,0.00041095,30]
[392266504,1761292258151,-500.0,0.00041095,30]
[392266505,1761292258162,-500.0,0.00041095,30]
[392266506,1761292258171,-507.8,0.00041095,30]
[392266507,1761292258181,-441.23668165,0.00041095,30]
[392266508,1761292258190,-1211.57,0.00041095,30]
[392266509,1761292258199,-698.75,0.00041095,30]
[392266510,1761292258208,-151.0,0.00041095,120]
[392266511,1761292258219,-500.0,0.00041095,30]
[392266512,1761292258230,-500.0,0.00041095,30]
[392266513,1761292258240,-500.0,0.00041095,30]
[392266514,1761292258250,-1125.06,0.00041095,30]
[392266515,1761292258260,-602.83,0.00041095,30]
[392266516,1761292258272,-500.0,0.00041095,30]
[392266517,1761292258283,-500.0,0.00041095,30]
[392266518,1761292258294,-500.0,0.00041095,30]
[392266519,1761292258306,-500.0,0.00041095,30]
[392266520,1761292258316,-500.0,0.00041095,30]
[392266521,1761292258326,-500.0,0.00041095,30]
[392266522,1761292258335,-500.0,0.00041095,30]
[392266523,1761292258345,-500.0,0.00041095,30]
[392266524,1761292258356,-500.0,0.00041095,30]
[392266525,1761292258365,-500.0,0.00041095,2]
[392266526,1761292258374,-500.0,0.00041095,30]
[392266527,1761292258383,-500.0,0.00041095,30]
[392266528,1761292258393,-500.0,0.00041095,30]
[392266529,1761292258402,-500.0,0.00041095,30]
[392266530,1761292258411,-500.0,0.00041095,30]
[392266531,1761292258421,-500.0,0.00041095,30]
[392266532,1761292258430,-500.0,0.00041095,30]
[392266533,1761292258439,-500.0,0.00041095,30]
[392266534,1761292258449,-500.0,0.00041095,30]
[392266535,1761292258458,-500.0,0.00041095,30]
[392266536,1761292258468,-500.0,0.00041095,30]
[392266537,1761292258477,-500.0,0.00041095,30]
[392266538,1761292258487,-500.0,0.00041095,30]
[392266539,1761292258496,-500.0,0.00041095,30]
[392266540,1761292258506,-500.0,0.00041095,30]
[392266541,1761292258516,-500.0,0.00041095,30]
[392266542,1761292258525,-500.0,0.00041095,30]
[392266543,1761292258534,-500.0,0.00041095,30]
[392266544,1761292258543,-500.0,0.00041095,30]
[392266545,1761292258553,-500.0,0.00041095,30]
[392266546,1761292258563,-500.0,0.00041095,30]
[392266547,1761292258572,-542.78,0.00041095,30]
[392266548,1761292258581,-500.0,0.00041095,30]
[392266549,1761292258591,-500.0,0.00041095,30]
[392266550,1761292258600,-500.0,0.00041095,30]
[392266551,1761292258610,-500.0,0.00041095,30]
[392266552,1761292258625,-513.61360456,0.00041095,30]
[392266553,1761292258635,-528.40845504,0.00041095,30]
[392266554,1761292258644,-500.0,0.00041095,30]
[392266555,1761292258654,-743.7,0.00041095,30]
[392266556,1761292258665,-500.0,0.00041095,30]
[392266557,1761292258675,-528.92475037,0.00041095,30]
[392266558,1761292258684,-500.0,0.00041095,30]
[392266559,1761292258694,-627.16,0.00041095,30]
[392266560,1761292258704,-500.0,0.00041095,30]
[392266561,1761292258713,-707.56,0.00041095,30]
[392266562,1761292258723,-500.0,0.00041095,30]
[392266563,1761292258732,-500.0,0.00041095,30]
[392266564,1761292258741,-533.1,0.00041095,30]
[392266565,1761292258751,-151.0,0.00041095,120]
[392266566,1761292258761,-151.0,0.00041095,120]
[392266567,1761292258771,-500.0,0.00041095,30]
[392266568,1761292258780,-151.0,0.00041095,120]
[392266569,1761292258790,-500.0,0.00041095,30]
[392266570,1761292258799,-500.0,0.00041095,30]
[392266571,1761292258809,-500.0,0.00041095,30]
[392266572,1761292258818,-500.0,0.00041095,30]
[392266573,1761292258828,-500.0,0.00041095,30]
[392266574,1761292258838,-500.0,0.00041095,30]
[392266575,1761292258849,-500.0,0.00041095,30]
[392266576,1761292258858,-500.0,0.00041095,30]
[392266577,1761292258868,-879.13,0.00041095,30]
[392266578,1761292258892,-502.73212338,0.00041095,30]
[392266579,1761292258902,-500.0,0.00041095,30]
[392266580,1761292258912,-500.0,0.00041095,30]
[392266581,1761292258922,-500.0,0.00041095,30]
[392266582,1761292258934,-151.0,0.00041095,120]
[392266583,1761292258943,-500.0,0.00041095,30]
[392266584,1761292258953,-151.0,0.00041095,120]
[392266585,1761292258962,-500.0,0.00041095,6]
[392266586,1761292258972,-500.0,0.00041095,30]
[392266587,1761292258983,-500.0,0.00041095,30]
[392266588,1761292258993,-500.0,0.00041095,30]
[392266589,1761292259004,-500.0,0.00041095,30]
[392266590,1761292259015,-500.0,0.00041095,30]
[392266591,1761292259026,-500.0,0.00041095,30]
[392266592,1761292259035,-500.0,0.00041095,30]
[392266593,1761292259044,-500.0,0.00041095,30]
[392266594,1761292259054,-500.0,0.00041095,30]
[392266595,1761292259063,-500.0,0.00041095,30]
[392266596,1761292259072,-500.0,0.00041095,2]
[392266597,1761292259081,-500.0,0.00041095,30]
[392266598,1761292259091,-500.0,0.00041095,30]
[392266599,1761292259100,-500.0,0.00041095,30]
[392266600,1761292259109,-500.0,0.00041095,30]
[392266601,1761292259119,-500.0,0.00041095,30]
[392266602,1761292259129,-500.0,0.00041095,30]
[392266603,1761292259139,-500.0,0.00041095,30]
[392266604,1761292259149,-500.0,0.00041095,30]
[392266605,1761292259158,-780.18,0.00041095,30]
[392266606,1761292259167,-554.36350115,0.00041095,30]
[392266607,1761292259177,-500.0,0.00041095,30]
[392266608,1761292259186,-500.0,0.00041095,30]
[392266609,1761292259196,-575.11,0.00041095,30]
[392266610,1761292259205,-500.0,0.00041095,30]
[392266611,1761292259215,-500.0,0.00041095,30]
[392266612,1761292259224,-500.0,0.00041095,30]
[392266613,1761292259239,-500.0,0.00041095,30]
[392266614,1761292259248,-500.0,0.00041095,30]
[392266615,1761292259257,-500.0,0.00041095,30]
[392266616,1761292259267,-517.06,0.00041095,30]
[392266617,1761292259276,-500.0,0.00041095,30]